fUST/lending_fUST_20240609
["ID","MTS","AMOUNT","RATE_DAILY","PERIOD"]
[328870216,1717928969839,-190.95476573,0.00015652,2]
[328870217,1717928969865,-190.95476573,0.00015754,2]
[328870218,1717928969892,-190.95476573,0.00015856,2]
[328870219,1717928969917,-153.0,0.00015956,2]
[328870221,1717928981400,2095.08239938,0.00014664,2]
[328870222,1717928983069,-1634.20645373,0.00016286,7]
[328870223,1717928983105,-9763.08602977,0.000165,7]
[328870224,1717928983132,-1617.39444028,0.000165,7]
[328870225,1717928983565,1000.0,0.00018,18]
[328870226,1717928984636,8018.52452147,0.00014664,2]
[328870227,1717928984675,835.24029067,0.00014664,2]
[328870228,1717928988684,552.39710422,9.999e-05,2]
[328870230,1717929002241,1634.20645373,0.00016436,7]
[328870231,1717929014243,1634.20645373,0.00016436,7]
[328870232,1717929015310,154.98450155,9.999e-05,2]
[328870233,1717929024806,1155.8409949,9.999e-05,2]
[328870236,1717929032247,1634.20645373,0.00016436,7]
[328870240,1717929033231,-3154.9690062,0.00015543,2]
[328870241,1717929033358,-2705.2837128,0.00015543,2]
[328870242,1717929033370,-130.41981362,0.00015796,2]
[328870274,1717929039122,-24.56468793,0.00015796,2]
[328870275,1717929039132,-2095.08239938,0.00015956,2]
[328870276,1717929039143,-286.64405799,0.00015956,2]
[328870277,1717929039154,-427.1678815,0.00016284,2]
[328870278,1717929039164,-156.91563212,0.00016285,2]
[328870279,1717929039174,-1100.27196223,0.00016285,2]
[328870280,1717929039184,-2036.10483651,0.00016285,2]
[328870281,1717929039197,-489.56838451,0.00016286,2]
[328870282,1717929039207,-692.26255018,0.00016286,2]
[328870283,1717929039218,-837.83743989,0.00016286,2]
[328870284,1717929039228,-1281.2261588,0.00016286,2]
[328870285,1717929039238,-524.19655516,0.00016286,2]
[328870286,1717929039249,-1281.50835311,0.00016286,2]
[328870287,1717929039259,-285.76830085,0.00016286,2]
[328870288,1717929039270,-306.0,0.00016301,2]
[328870289,1717929039281,-4238.41830585,0.00016423,2]
[328870290,1717929039291,-372.50592829,0.00016436,2]
[328870291,1717929039302,-686.12053619,0.00016436,2]
[328870292,1717929039312,-7914.74227919,0.00016436,2]
[328870293,1717929039324,-520.30892496,0.00016436,2]
[328870294,1717929039335,-3117.66925744,0.00016436,2]
[328870295,1717929039346,-309.86055114,0.00016436,2]
[328870296,1717929039356,-187.78108932,0.00016436,2]
[328870297,1717929039367,-411.42673703,0.00016436,2]
[328870298,1717929039378,-442.31814765,0.00016436,2]
[328870299,1717929039388,-8493.77840495,0.00016437,2]
[328870300,1717929039399,-500.0,0.00016438,2]
[328870301,1717929039410,-500.0,0.00016438,2]
[328870302,1717929039420,-238.24599225,0.00016438,2]
[328870303,1717929039430,-500.0,0.00016438,2]
[328870304,1717929039442,-158.8,0.00016438,2]
[328870305,1717929039452,-158.8,0.00016438,2]
[328870306,1717929039463,-500.0,0.00016438,2]
[328870307,1717929039473,-500.0,0.00016438,2]
[328870308,1717929039483,-157.6,0.00016438,2]
[328870309,1717929039493,-500.0,0.00016438,2]
[328870310,1717929039504,-500.0,0.00016438,2]
[328870311,1717929039514,-289.21672722,0.00016438,2]
[328870312,1717929039524,-500.0,0.00016438,2]
[328870313,1717929039534,-500.0,0.00016438,2]
[328870314,1717929039544,-500.0,0.00016438,2]
[328870315,1717929039555,-500.0,0.00016438,2]
[328870316,1717929039565,-500.0,0.00016438,2]
[328870317,1717929039575,-500.0,0.00016438,2]
[328870318,1717929039585,-500.0,0.00016438,2]
[328870319,1717929039595,-549.84,0.00016438,2]
[328870320,1717929039605,-500.0,0.00016438,2]
[328870321,1717929039616,-500.0,0.00016438,2]
[328870322,1717929039626,-444.9775477,0.00016438,2]
[328870323,1717929039637,-500.0,0.00016438,2]
[328870324,1717929039648,-500.0,0.00016438,2]
[328870325,1717929039659,-500.0,0.00016438,2]
[328870326,1717929039669,-154.96,0.00016438,2]
[328870327,1717929039679,-369.43,0.00016438,2]
[328870328,1717929039689,-623.97,0.00016438,2]
[328870329,1717929039700,-500.0,0.00016438,2]
[328870330,1717929039710,-500.0,0.00016438,2]
[328870331,1717929039721,-500.0,0.00016438,2]
[328870332,1717929039731,-553.54642679,0.00016438,2]
[328870333,1717929039741,-556.22880052,0.00016438,2]
[328870334,1717929039752,-680.98,0.00016438,2]
[328870335,1717929039762,-500.0,0.00016438,2]
[328870336,1717929039772,-551.09,0.00016438,2]
[328870337,1717929039782,-820.4,0.00016438,2]
[328870338,1717929039793,-316.36402455,0.00016438,2]
[328870339,1717929039803,-303.20651555,0.00016497,2]
[328870340,1717929039814,-223.40436303,0.00016497,2]
[328870341,1717929039824,-722.17610158,0.00016497,2]
[328870342,1717929039834,-221472.69702976,0.000165,2]
[328870343,1717929039848,-8428.29433342,0.000165,2]
[328870368,1717929047284,-500.0,0.00016438,2]
[328870369,1717929047294,-233.58313127,0.000165,2]
[328870370,1717929050326,1634.20645373,0.00016499,7]
[328870371,1717929050994,-10689.69716113,0.000165,2]
[328870372,1717929051004,-500.0,0.00016712,2]
[328870373,1717929051014,-508.9678449,0.00016712,2]
[328870374,1717929051024,-414.61503446,0.00016712,2]
[328870375,1717929051034,-500.0,0.00016712,2]
[328870376,1717929051045,-549.84,0.00016712,2]
[328870377,1717929051057,-500.0,0.00016712,2]
[328870378,1717929051070,-623.97,0.00016712,2]
[328870379,1717929051080,-680.98,0.00016712,2]
[328870380,1717929051092,-500.0,0.00016712,2]
[328870381,1717929051103,-393.75682182,0.00016712,2]
[328870383,1717929051948,-157.33317818,0.00016712,2]
[328870384,1717929051961,-820.4,0.00016712,2]
[328870385,1717929051973,-306.0,0.00016712,2]
[328870386,1717929051984,-150.0,0.00016908,2]
[328870387,1717929051997,-347.79063184,0.00016986,2]
[328870388,1717929052009,-399.96083133,0.00016986,2]
[328870389,1717929052021,-549.84,0.00016986,2]
[328870390,1717929052031,-500.0,0.00016986,2]
[328870391,1717929052042,-623.97,0.00016986,2]
[328870392,1717929052053,-680.98,0.00016986,2]
[328870393,1717929052065,-500.0,0.00016986,2]
[328870394,1717929052076,-551.09,0.00016986,2]
[328870395,1717929052087,-375.86305414,0.00016986,2]
[328870396,1717929117232,-1634.20645373,0.00017533,7]
[328870397,1717929131261,1634.20645373,0.00017532,7]
[328870398,1717929149257,1634.20645373,0.00017532,7]
[328870399,1717929165260,1634.20645373,0.00017532,7]
[328870400,1717929189956,1634.20645373,0.00017532,7]
[328870403,1717929285928,312.84361794,0.00015999,10]
[328870405,1717929417694,6885.17556527,0.000125,2]
[328870406,1717929474710,9141.23401217,0.000125,2]
[328870407,1717929474740,7044.17426602,0.000125,2]
[328870408,1717929492898,300.16961376,0.000125,2]
[328870409,1717929496105,3639.96681777,0.000125,2]
[328870410,1717929514844,300.16961376,0.000125,2]
[328870411,1717929520102,3636.33674655,0.000125,2]
[328870412,1717929526489,155.07405813,0.000125,2]
[328870413,1717929536861,300.16961376,0.000125,2]
[328870414,1717929544885,155.99164494,0.000125,2]
[328870415,1717929548302,155.37217126,0.000125,2]
[328870416,1717929558117,3639.96681777,0.000125,2]
[328870417,1717929562859,300.24167018,0.000125,2]
[328870418,1717929578110,3639.96681777,0.000125,2]
[328870419,1717929578716,16189.27952619,0.000125,2]
[328870420,1717929582961,300.24167018,0.000125,2]
[328870421,1717929598854,300.02550092,0.000125,2]
[328870422,1717929600708,2356.02401049,0.000125,2]
[328870423,1717929618858,296.50875695,0.000125,2]
[328870427,1717929820725,592.41,0.00010959,2]
[328870428,1717929822788,16175.12436626,0.000125,2]
[328870429,1717929826326,871.21736108,0.00011998,2]
[328870431,1717929833704,292.51484309,0.00011998,2]
[328870435,1717929849648,292.23265257,0.00013149,2]
[328870443,1717930043990,1441.96072993,9.999e-05,2]
[328870449,1717930129273,3000.0,0.0001386,2]
[328870454,1717930157793,154.98450155,0.00013721,2]
[328870457,1717930177718,154.98450155,0.00013721,2]
[328870460,1717930195722,154.98450155,0.00013721,2]
[328870462,1717930213731,154.98450155,0.000136,2]
[328870463,1717930229722,154.98450155,0.000136,2]
[328870526,1717930233858,-1441.28312535,0.00014725,2]
[328870527,1717930233869,-24900.0,0.00014726,2]
[328870529,1717930233879,-2789.1393778,0.00014872,2]
[328870531,1717930233888,-250.0,0.00014881,2]
[328870532,1717930233898,-836.254654,0.00014999,2]
[328870533,1717930233908,-1118.80917397,0.00015538,2]
[328870534,1717930233918,-190.18117704,0.00015538,2]
[328870535,1717930233928,-234.94474719,0.00015538,2]
[328870554,1717930239978,-931.34483686,0.00015538,2]
[328870555,1717930239989,-127.51816214,0.00015796,2]
[328870556,1717930240003,-2053.53021629,0.00015796,2]
[328870557,1717930240014,-153.0,0.000158,2]
[328870558,1717930240026,-153.96796503,0.00015898,2]
[328870559,1717930240037,-2112.86517201,0.00015982,2]
[328870560,1717930240049,-1500.82055846,0.00015998,2]
[328870561,1717930240059,-157.66978397,0.00015998,2]
[328870562,1717930240070,-411.42673703,0.00015998,2]
[328870563,1717930240081,-187.78108932,0.00015998,2]
[328870565,1717930240092,-759.67615126,0.00015998,2]
[328870568,1717930240103,-272.44632851,0.00015998,2]
[328870569,1717930240114,-317.3700773,0.00015998,2]
[328870570,1717930240125,-303.20651555,0.00015998,2]
[328870571,1717930240137,-309.92252015,0.00015998,2]
[328870572,1717930240148,-309.32615265,0.00015998,2]
[328870603,1717930244316,-1033.26446187,0.00015998,2]
[328870604,1717930244326,-286.64405799,0.00015999,2]
[328870605,1717930244337,-165.27827793,0.00016,2]
[328870606,1717930244349,-204.6657777,0.00016219,2]
[328870607,1717930244359,-425.0560651,0.00016378,2]
[328870608,1717930244370,-372.50592829,0.00016438,2]
[328870609,1717930244381,-500.0,0.00016438,2]
[328870610,1717930244392,-500.0,0.00016438,2]
[328870611,1717930244402,-500.0,0.00016438,2]
[328870612,1717930244414,-51.23100692,0.00016438,2]
[328870613,1717930244430,-462.54899308,0.00016438,2]
[328870614,1717930244440,-500.0,0.00016438,2]
[328870615,1717930244451,-264.04424033,0.00016438,2]
[328870616,1717930244461,-634.88,0.00016438,2]
[328870617,1717930244472,-500.0,0.00016438,2]
[328870618,1717930244482,-500.0,0.00016438,2]
[328870619,1717930244493,-500.0,0.00016438,2]
[328870620,1717930244506,-781.75,0.00016438,2]
[328870621,1717930244518,-500.0,0.00016712,2]
[328870622,1717930244528,-383.8765629,0.00016712,2]
[328870623,1717930244540,-513.78,0.00016712,2]
[328870624,1717930244550,-634.88,0.00016712,2]
[328870625,1717930244710,-500.0,0.00016712,2]
[328870626,1717930244721,-781.75,0.00016712,2]
[328870627,1717930244732,-4238.41830585,0.00016767,2]
[328870628,1717930244743,-153.96796503,0.00016831,2]
[328870629,1717930244754,-500.0,0.00016986,2]
[328870630,1717930244769,-513.78,0.00016986,2]
[328870631,1717930244780,-634.88,0.00016986,2]
[328870632,1717930244792,-500.0,0.00016986,2]
[328870633,1717930244803,-781.75,0.00016986,2]
[328870634,1717930244813,-166.666666,0.00016986,2]
[328870635,1717930244824,-1000.0,0.00017,2]
[328870636,1717930244835,-153.0,0.00017138,2]
[328870637,1717930244845,-153.0,0.00017138,2]
[328870638,1717930244855,-59.36722437,0.00017138,2]
[328870639,1717930244872,-93.63277563,0.00017138,2]
[328870640,1717930244884,-153.0,0.00017138,2]
[328870641,1717930244895,-153.0,0.00017141,2]
[328870642,1717930244906,-153.0,0.00017141,2]
[328870643,1717930244916,-153.0,0.00017141,2]
[328870644,1717930244927,-153.0,0.00017141,2]
[328870645,1717930244938,-153.0,0.00017161,2]
[328870646,1717930244949,-153.0,0.00017161,2]
[328870647,1717930244960,-500.0,0.0001726,2]
[328870648,1717930244971,-513.78,0.0001726,2]
[328870649,1717930244981,-634.88,0.0001726,2]
[328870650,1717930244992,-500.0,0.0001726,2]
[328870651,1717930245003,-781.75,0.0001726,2]
[328870652,1717930245014,-153.0,0.00017315,2]
[328870653,1717930245026,-153.0,0.00017315,2]
[328870654,1717930245037,-153.0,0.00017315,2]
[328870655,1717930245048,-1118.80917393,0.00017421,2]
[328870656,1717930245060,-3070.8095879,0.00017532,2]
[328870657,1717930245070,-1910.49735366,0.00017532,2]
[328870658,1717930245081,-1425.17823236,0.00017533,2]
[328870659,1717930245093,-500.0,0.00017534,2]
[328870660,1717930245103,-3432.59,0.00017534,3]
[328870661,1717930245114,-3432.59,0.00017534,3]
[328870662,1717930245125,-3432.59,0.00017534,3]
[328870663,1717930245136,-3432.59,0.00017534,3]
[328870664,1717930245146,-3432.59,0.00017534,3]
[328870665,1717930245157,-513.78,0.00017534,2]
[328870666,1717930245169,-634.88,0.00017534,2]
[328870667,1717930245181,-500.0,0.00017534,2]
[328870668,1717930245192,-781.75,0.00017534,2]
[328870669,1717930245204,-499.0,0.00017607,2]
[328870670,1717930245215,-2168.42505344,0.00017618,2]
[328870671,1717930245226,-153.96796503,0.00017763,2]
[328870672,1717930245236,-3000.0,0.00017808,2]
[328870673,1717930245246,-3000.0,0.00017808,2]
[328870674,1717930245258,-3000.0,0.00017808,2]
[328870675,1717930245269,-3000.0,0.00017808,2]
[328870676,1717930245280,-3000.0,0.00017808,2]
[328870677,1717930245292,-196.54706765,0.00017808,2]
[328870678,1717930245303,-500.0,0.00017808,2]
[328870679,1717930245313,-3432.59,0.00017808,3]
[328870680,1717930245324,-513.78,0.00017808,2]
[328870681,1717930245336,-634.88,0.00017808,2]
[328870682,1717930245347,-500.0,0.00017808,2]
[328870683,1717930245358,-781.75,0.00017808,2]
[328870684,1717930245368,-295.305,0.00017841,2]
[328870685,1717930245380,-205.268679,0.0001789,2]
[328870686,1717930245390,-173.31034328,0.00017898,2]
[328870687,1717930245400,-241.35097758,0.00017898,2]
[328870688,1717930245411,-270.0388831,0.00017898,2]
[328870689,1717930245423,-164.8615316,0.00017898,2]
[328870690,1717930245434,-298.88918765,0.00017898,2]
[328870691,1717930245453,-9736.95492455,0.00017898,2]
[328870692,1717930245470,-451.16792718,0.00017898,2]
[328870693,1717930245480,-593.0,0.000179,2]
[328870694,1717930245491,-524.81042041,0.00018,2]
[328870695,1717930245807,154.98450155,0.000136,2]
[328870702,1717930247833,-500.0,0.00016438,2]
[328870703,1717930247846,-952.6568675,0.00018,2]
[328870704,1717930247857,-1070.94931999,0.00018,2]
[328870707,1717930388457,150.96980604,0.00020631,30]
[328870749,1717931001125,150.0,0.00023,30]
[328870869,1717931439197,-1139.07338121,0.00014096,2]
[328870870,1717931439208,-266.22098255,0.000144,2]
[328870890,1717931444353,-20794.93157317,0.000144,2]
[328870892,1717931445401,-3838.84744428,0.000144,2]
[328870893,1717931445412,-250.0,0.00014534,2]
[328870894,1717931445422,-525.827898,0.00014691,2]
[328870895,1717931445433,-3000.0,0.00015586,2]
[328870896,1717931445446,-412.70312451,0.00015738,2]
[328870897,1717931445457,-6779.39459125,0.00015738,2]
[328870898,1717931445469,-200.21727429,0.00015838,2]
[328870899,1717931445480,-412.70312447,0.00016478,2]
[328870900,1717931445491,-500.0,0.00016985,2]
[328870901,1717931445503,-500.0,0.00016986,2]
[328870902,1717931445514,-500.0,0.00016986,2]
[328870903,1717931445525,-500.0,0.00016986,2]
[328870904,1717931445536,-586.31,0.00016986,2]
[328870905,1717931445546,-166.666666,0.00016986,2]
[328870906,1717931445557,-153.0,0.00017041,2]
[328870907,1717931445567,-162.0263269,0.00017041,2]
[328870908,1717931445578,-923.79132463,0.00017098,2]
[328870909,1717931445588,-153.0,0.00017147,2]
[328870910,1717931445598,-153.0,0.00017147,2]
[328870911,1717931445608,-153.0,0.00017147,2]
[328870912,1717931445619,-153.0,0.00017147,2]
[328870913,1717931445629,-153.0,0.00017147,2]
[328870914,1717931445639,-153.0,0.00017147,2]
[328870915,1717931445649,-153.0,0.00017147,2]
[328870917,1717931445659,-153.0,0.00017147,2]
[328870919,1717931445669,-153.0,0.00017151,2]
[328870921,1717931445679,-153.0,0.00017151,2]
[328870922,1717931445689,-153.0,0.00017151,2]
[328870923,1717931445699,-153.0,0.00017151,2]
[328870924,1717931445710,-153.0,0.00017151,2]
[328870925,1717931445721,-153.0,0.00017151,2]
[328870926,1717931445732,-153.0,0.00017151,2]
[328870927,1717931445743,-153.0,0.00017151,2]
[328870928,1717931445754,-153.0,0.00017151,2]
[328870929,1717931445764,-153.0,0.00017151,2]
[328870930,1717931445775,-153.0,0.00017151,2]
[328870931,1717931445787,-412.70312447,0.00017218,2]
[328870932,1717931445797,-500.0,0.00017259,2]
[328870933,1717931445806,-500.0,0.0001726,2]
[328870934,1717931445816,-500.0,0.0001726,2]
[328870935,1717931445826,-500.0,0.0001726,2]
[328870936,1717931445836,-586.31,0.0001726,2]
[328870937,1717931445846,-500.0,0.00017533,2]
[328870938,1717931445856,-500.0,0.00017533,2]
[328870939,1717931445866,-500.0,0.00017533,2]
[328870940,1717931445875,-500.0,0.00017533,2]
[328870941,1717931445886,-586.31,0.00017533,2]
[328870942,1717931445896,-2574.44,0.00017534,3]
[328870943,1717931445905,-2574.44,0.00017534,3]
[328870944,1717931445915,-2574.44,0.00017534,3]
[328870945,1717931445924,-505.012,0.00017709,2]
[328870946,1717931445933,-165.229,0.00017709,2]
[328870947,1717931445943,-4238.41830585,0.00017734,2]
[328870948,1717931445952,-500.0,0.00017807,2]
[328870949,1717931445962,-1806.00667741,0.00017807,3]
[328870950,1717931446107,-768.43332259,0.00017807,3]
[328870951,1717931446117,-500.0,0.00017807,2]
[328870952,1717931446127,-500.0,0.00017807,2]
[328870953,1717931446137,-500.0,0.00017807,2]
[328870954,1717931446148,-586.31,0.00017807,2]
[328870955,1717931446157,-333.81065789,0.00017897,2]
[328870956,1717931446166,-500.0,0.00017897,2]
[328870957,1717931446176,-10487.01203938,0.00017898,2]
[328870958,1717931446185,-412.70312447,0.00017957,2]
[328870959,1717931446195,-6999.2238043,0.00017998,2]
[328870960,1717931446205,-241.89760239,0.00017998,2]
[328870961,1717931446215,-7291.74596542,0.00017999,2]
[328870962,1717931446225,-284.07231009,0.00018,2]
[328870963,1717931446234,-1058.74102237,0.00018,2]
[328870964,1717931446244,-155.10983824,0.00018,2]
[328870965,1717931446254,-8348.11311566,0.00018,2]
[328870966,1717931446270,-1419.90298094,0.00018,2]
[328870967,1717931446281,-1000.0,0.00018,2]
[328870968,1717931446291,-2764.13862909,0.00018,2]
[328870971,1717931446302,-632.70327939,0.00018,2]
[328870974,1717931446312,-151.0,0.00018003,3]
[328870976,1717931446322,-151.0,0.00018003,3]
[328870978,1717931446332,-500.0,0.00018081,2]
[328870979,1717931446342,-2574.44,0.00018081,3]
[328870980,1717931446353,-500.0,0.00018081,2]
[328870982,1717931446363,-500.0,0.00018081,2]
[328870984,1717931446373,-500.0,0.00018081,2]
[328870985,1717931446384,-586.31,0.00018081,2]
[328870987,1717931446394,-600.0,0.00018144,2]
[328870988,1717931446404,-500.0,0.00018171,2]
[328870989,1717931446415,-30.41585767,0.00018183,3]
[328870993,1717931447609,-120.58414233,0.00018183,3]
[328870994,1717931447620,-151.0,0.00018183,3]
[328870995,1717931447631,-602.66100667,0.00018333,2]
[328870996,1717931447641,-500.0,0.00018355,2]
[328870997,1717931447651,-52.834851,0.00018355,3]
[328870998,1717931447663,-2521.605149,0.00018355,3]
[328870999,1717931447674,-500.0,0.00018355,2]
[328871000,1717931447684,-500.0,0.00018355,2]
[328871001,1717931447695,-500.0,0.00018355,2]
[328871002,1717931447706,-586.31,0.00018355,2]
[328871003,1717931447717,-151.0,0.00018362,3]
[328871004,1717931447727,-151.0,0.00018362,3]
[328871005,1717931447737,-487.04361673,0.00018445,2]
[328871006,1717931447749,-12.95638327,0.00018445,2]
[328871007,1717931447760,-454.75081642,0.000185,2]
[328871009,1717931918428,758.93,0.00010959,2]
[328871018,1717932109748,285.76830085,0.0001409,2]
[328871019,1717932165225,191.58,0.00010959,2]
[328871023,1717932208020,411.5321918,9.999e-05,2]
[328871024,1717932224021,411.32128226,0.0001409,2]
[328871025,1717932227063,574.76,0.00010959,2]
[328871027,1717932283655,309.9070279,0.0001409,2]
[328871031,1717932371766,24900.0,0.00013793,2]
[328871032,1717932423370,309.92252015,0.0001409,2]
[328871040,1717932538939,281.83331494,0.00013949,2]
[328871052,1717932633512,-805.22951312,0.00014091,2]
[328871053,1717932633786,-806.25732303,0.00014091,2]
[328871099,1717932639481,-509.58636427,0.00014091,2]
[328871101,1717932639493,-8043.56696573,0.00014092,2]
[328871147,1717932644683,-14805.45311262,0.00014092,2]
[328871148,1717932644694,-1139.36136678,0.00014094,2]
[328871149,1717932644704,-292.66335699,0.00014094,2]
[328871150,1717932644720,-250.0,0.0001415,2]
[328871151,1717932644735,-2814.56742105,0.00015,2]
[328871152,1717932644746,-3000.0,0.00015459,2]
[328871153,1717932644756,-262.913949,0.00015506,2]
[328871154,1717932644766,-500.0,0.00016438,2]
[328871155,1717932644777,-500.0,0.00016438,2]
[328871156,1717932644787,-500.0,0.00016438,2]
[328871157,1717932644797,-330.18495978,0.00016438,2]
[328871158,1717932644807,-500.0,0.00016438,2]
[328871159,1717932644817,-268.6327995,0.00016612,2]
[328871160,1717932644828,-500.0,0.00016712,2]
[328871161,1717932644838,-500.0,0.00016712,2]
[328871162,1717932644848,-500.0,0.00016712,2]
[328871163,1717932644858,-500.0,0.00016712,2]
[328871164,1717932644868,-500.0,0.00016985,2]
[328871165,1717932644879,-500.0,0.00016986,2]
[328871166,1717932644889,-500.0,0.00016986,2]
[328871167,1717932644899,-500.0,0.00016986,2]
[328871168,1717932644910,-500.0,0.00016986,2]
[328871169,1717932644924,-166.666666,0.00016986,2]
[328871170,1717932644934,-268.63279946,0.00017133,2]
[328871171,1717932644944,-153.0,0.00017143,2]
[328871172,1717932644956,-153.0,0.00017143,2]
[328871173,1717932644967,-153.0,0.00017143,2]
[328871174,1717932644978,-153.0,0.00017143,2]
[328871175,1717932644988,-153.0,0.00017151,2]
[328871176,1717932645002,-153.0,0.00017151,2]
[328871177,1717932645014,-153.0,0.00017151,2]
[328871178,1717932645025,-153.0,0.00017151,2]
[328871179,1717932645037,-153.0,0.00017151,2]
[328871180,1717932645048,-153.0,0.00017151,2]
[328871181,1717932645058,-153.0,0.00017151,2]
[328871182,1717932645068,-153.0,0.00017151,2]
[328871183,1717932645079,-153.0,0.00017151,2]
[328871184,1717932645089,-500.0,0.00017259,2]
[328871185,1717932645100,-500.0,0.0001726,2]
[328871186,1717932645111,-500.0,0.0001726,2]
[328871187,1717932645122,-500.0,0.0001726,2]
[328871188,1717932645133,-500.0,0.0001726,2]
[328871189,1717932645143,-500.0,0.00017533,2]
[328871190,1717932645154,-500.0,0.00017534,2]
[328871191,1717932645164,-500.0,0.00017534,2]
[328871192,1717932645175,-1930.83,0.00017534,3]
[328871193,1717932645372,-1930.83,0.00017534,3]
[328871194,1717932645385,-1930.83,0.00017534,3]
[328871195,1717932645395,-1930.83,0.00017534,3]
[328871196,1717932645406,-1026.30053878,0.00017534,3]
[328871203,1717932647793,-904.52946122,0.00017534,3]
[328871204,1717932647804,-500.0,0.00017534,2]
[328871205,1717932647813,-500.0,0.00017534,2]
[328871206,1717932647823,-268.63279946,0.00017653,2]
[328871207,1717932647833,-499.0,0.00017777,2]
[328871208,1717932647843,-500.0,0.00017807,2]
[328871209,1717932647853,-500.0,0.00017808,2]
[328871210,1717932647863,-500.0,0.00017808,2]
[328871211,1717932647874,-1930.83,0.00017808,3]
[328871212,1717932647884,-500.0,0.00017808,2]
[328871213,1717932647895,-500.0,0.00017808,2]
[328871214,1717932647907,-704.51882961,0.00017898,2]
[328871215,1717932647924,-9782.49320977,0.00017898,2]
[328871216,1717932647934,-2764.13862909,0.00018,2]
[328871217,1717932647945,-1058.74102237,0.00018,2]
[328871218,1717932647955,-632.70327939,0.00018,2]
[328871219,1717932647966,-1355.02163008,0.00018,2]
[328871220,1717932647976,-500.0,0.00018081,2]
[328871221,1717932647986,-500.0,0.00018082,2]
[328871222,1717932647998,-500.0,0.00018082,2]
[328871223,1717932648010,-1930.83,0.00018082,3]
[328871224,1717932648020,-500.0,0.00018082,2]
[328871225,1717932648030,-500.0,0.00018082,2]
[328871226,1717932648040,-160.0,0.00018138,2]
[328871227,1717932648051,-4238.41830585,0.00018139,2]
[328871228,1717932648062,-268.63279946,0.00018174,2]
[328871229,1717932648072,-500.0,0.00018355,2]
[328871230,1717932648084,-500.0,0.00018356,2]
[328871231,1717932648095,-500.0,0.00018356,2]
[328871232,1717932648105,-1930.83,0.00018356,3]
[328871233,1717932648116,-500.0,0.00018356,2]
[328871234,1717932648126,-500.0,0.00018356,2]
[328871235,1717932648137,-190.18117704,0.000184,2]
[328871236,1717932648147,-151.63631003,0.000185,2]
[328871237,1717932648158,-286.64405799,0.000185,2]
[328871238,1717932648168,-174.92075192,0.00018534,2]
[328871239,1717932648179,-151.0,0.00018536,3]
[328871240,1717932648190,-151.0,0.00018536,3]
[328871241,1717932648200,-500.0,0.00018629,2]
[328871242,1717932648210,-500.0,0.0001863,2]
[328871243,1717932648221,-500.0,0.0001863,2]
[328871244,1717932648232,-1930.83,0.0001863,3]
[328871245,1717932648242,-286.86902088,0.0001863,2]
[328871246,1717932648252,-500.0,0.0001863,2]
[328871247,1717932648263,-320.0,0.00018685,2]
[328871248,1717932648273,-268.63279946,0.00018694,2]
[328871249,1717932648284,-151.0,0.00018718,3]
[328871250,1717932648294,-151.0,0.00018718,3]
[328871251,1717932648304,-719.84106044,0.00018773,2]
[328871252,1717932648315,-2000.0,0.00018788,2]
[328871253,1717932648325,-187.78108932,0.00018791,2]
[328871254,1717932648336,-13461.66201968,0.00018792,2]
[328871270,1717932764408,154.98450155,9.999e-05,2]
[328871277,1717932864857,285.84278041,9.999e-05,2]
[328871290,1717933017021,3081.87656697,0.000125,2]
[328871295,1717933206794,154.98450155,9.999e-05,2]